fUST/lending_fUST_20250128
["ID","MTS","AMOUNT","RATE_DAILY","PERIOD"]
[350671011,1738051022746,-500.0,0.00016846,2]
[350671012,1738051022787,-500.0,0.00016846,2]
[350671013,1738051022828,-500.0,0.00016846,2]
[350671014,1738051022873,-500.0,0.00016846,2]
[350671015,1738051022912,-500.0,0.00016846,2]
[350671016,1738051022955,-500.0,0.00016846,2]
[350671017,1738051022999,-500.0,0.00016846,2]
[350671018,1738051023046,-500.0,0.00016846,2]
[350671019,1738051023093,-500.0,0.00016846,2]
[350671020,1738051023135,-500.0,0.00016846,2]
[350671021,1738051023175,-500.0,0.00016846,2]
[350671022,1738051023220,-500.0,0.00016846,2]
[350671023,1738051023267,-500.0,0.00016846,2]
[350671024,1738051023309,-500.0,0.00016846,2]
[350671025,1738051023364,-500.0,0.00016846,2]
[350671026,1738051023408,-500.0,0.00016846,2]
[350671027,1738051023453,-500.0,0.00016846,2]
[350671028,1738051023506,-500.0,0.00016846,2]
[350671029,1738051023550,-500.0,0.00016846,2]
[350671030,1738051023599,-500.0,0.00016846,2]
[350671031,1738051023646,-500.0,0.00016846,2]
[350671032,1738051023700,-500.0,0.00016846,2]
[350671033,1738051023756,-500.0,0.00016846,2]
[350671034,1738051023806,-500.0,0.00016846,2]
[350671035,1738051023853,-500.0,0.00016846,2]
[350671036,1738051023906,-500.0,0.00016846,2]
[350671037,1738051023963,-500.0,0.00016846,2]
[350671038,1738051024007,-500.0,0.00016846,2]
[350671039,1738051024054,-500.0,0.00016846,2]
[350671040,1738051024102,-500.0,0.00016846,2]
[350671041,1738051024149,-500.0,0.00016846,2]
[350671042,1738051024197,-500.0,0.00016846,2]
[350671043,1738051024244,-500.0,0.00016846,2]
[350671044,1738051024294,-500.0,0.00016846,2]
[350671045,1738051024341,-500.0,0.00016846,2]
[350671046,1738051024387,-299.394023,0.00016846,2]
[350671047,1738051024433,-500.0,0.00016846,2]
[350671048,1738051024476,-500.0,0.00016846,2]
[350671049,1738051024522,-500.0,0.00016846,2]
[350671050,1738051024565,-500.0,0.00016846,2]
[350671051,1738051024610,-500.0,0.00016846,2]
[350671052,1738051024653,-500.0,0.00016846,2]
[350671053,1738051024700,-500.0,0.00016846,2]
[350671054,1738051024745,-500.0,0.00016846,2]
[350671055,1738051024789,-500.0,0.00016846,2]
[350671056,1738051024834,-500.0,0.00016846,2]
[350671057,1738051024880,-500.0,0.00016846,2]
[350671058,1738051024922,-500.0,0.00016846,2]
[350671059,1738051024968,-500.0,0.00016846,2]
[350671060,1738051025016,-500.0,0.00016846,2]
[350671061,1738051025064,-500.0,0.00016846,2]
[350671062,1738051025108,-500.0,0.00016846,2]
[350671063,1738051025151,-500.0,0.00016846,2]
[350671064,1738051025194,-500.0,0.00016846,2]
[350671065,1738051025236,-500.0,0.00016846,2]
[350671066,1738051025277,-500.0,0.00016846,2]
[350671067,1738051025322,-500.0,0.00016846,2]
[350671068,1738051025367,-500.0,0.00016846,2]
[350671069,1738051025408,-500.0,0.00016846,2]
[350671070,1738051025451,-500.0,0.00016846,2]
[350671071,1738051025494,-500.0,0.00016846,2]
[350671072,1738051025538,-500.0,0.00016846,2]
[350671073,1738051025579,-500.0,0.00016846,2]
[350671074,1738051025621,-500.0,0.00016846,2]
[350671075,1738051025661,-500.0,0.00016846,2]
[350671076,1738051025783,-500.0,0.00016846,2]
[350671077,1738051025833,-500.0,0.00016846,2]
[350671078,1738051025877,-500.0,0.00016846,2]
[350671079,1738051025928,-500.0,0.00016846,2]
[350671080,1738051025975,-500.0,0.00016846,2]
[350671081,1738051026021,-500.0,0.00016846,2]
[350671082,1738051026068,-500.0,0.00016846,2]
[350671083,1738051026113,-500.0,0.00016846,2]
[350671084,1738051026160,-500.0,0.00016846,2]
[350671085,1738051026208,-500.0,0.00016846,2]
[350671086,1738051026251,-500.0,0.00016846,2]
[350671087,1738051026297,-500.0,0.00016846,2]
[350671088,1738051026339,-400.0,0.00016846,2]
[350671089,1738051026387,-500.0,0.00016846,2]
[350671090,1738051026428,-500.0,0.00016846,2]
[350671091,1738051026477,-500.0,0.00016846,2]
[350671092,1738051026523,-500.0,0.00016846,2]
[350671093,1738051026572,-500.0,0.00016846,2]
[350671094,1738051026618,-500.0,0.00016846,2]
[350671095,1738051026665,-500.0,0.00016846,2]
[350671096,1738051026715,-450.0,0.00016846,2]
[350671097,1738051026764,-500.0,0.00016846,2]
[350671098,1738051026805,-500.0,0.00016847,2]
[350671099,1738051026844,-500.0,0.00016847,2]
[350671100,1738051026885,-590.32627347,0.00016847,2]
[350671101,1738051026924,-500.0,0.00016847,2]
[350671102,1738051026965,-510.36657055,0.00016847,2]
[350671103,1738051027004,-500.0,0.00016847,2]
[350671104,1738051027044,-500.0,0.00016847,2]
[350671105,1738051027084,-500.0,0.00016847,2]
[350671106,1738051027123,-501.36331429,0.00016847,2]
[350671107,1738051027162,-500.0,0.00016847,2]
[350671108,1738051027200,-500.0,0.00016847,2]
[350671109,1738051027238,-508.56595639,0.00016847,2]
[350671110,1738051027277,-501.60868557,0.00016847,2]
[350671111,1738051027316,-500.76076375,0.00016847,2]
[350671112,1738051027354,-500.0,0.00016847,2]
[350671113,1738051027394,-500.0,0.00016847,2]
[350671114,1738051027433,-500.0,0.00016847,2]
[350671115,1738051027474,-500.0,0.00016847,2]
[350671116,1738051027515,-500.0,0.00016847,2]
[350671117,1738051027556,-500.0,0.00016847,2]
[350671118,1738051027596,-193.18223624,0.00016847,2]
[350671119,1738051027636,-500.0,0.00016847,2]
[350671120,1738051027678,-500.0,0.00016847,2]
[350671121,1738051027719,-500.0,0.00016847,2]
[350671122,1738051027759,-576.30687862,0.00016847,2]
[350671123,1738051027800,-500.0,0.00016847,2]
[350671124,1738051027842,-507.94244648,0.00016847,2]
[350671125,1738051027883,-500.0,0.00016847,2]
[350671126,1738051027921,-500.0,0.00016847,2]
[350671127,1738051027962,-500.0,0.00016847,2]
[350671128,1738051028002,-500.0,0.00016847,2]
[350671129,1738051028041,-500.0,0.00016847,2]
[350671130,1738051028081,-500.0,0.00016847,2]
[350671131,1738051028119,-509.53609126,0.00016847,2]
[350671132,1738051028158,-500.0,0.00016847,2]
[350671133,1738051028196,-500.0,0.00016847,2]
[350671134,1738051028236,-500.0,0.00016847,2]
[350671135,1738051028276,-500.0,0.00016847,2]
[350671136,1738051028317,-500.0,0.00016847,2]
[350671137,1738051028359,-500.0,0.00016847,2]
[350671138,1738051028400,-312.09312949,0.00016847,2]
[350671139,1738051028441,-500.0,0.00016847,2]
[350671140,1738051028485,-500.0,0.00016847,2]
[350671141,1738051028527,-500.0,0.00016847,2]
[350671142,1738051028569,-500.0,0.00016847,2]
[350671143,1738051028610,-500.0,0.00016847,2]
[350671144,1738051028652,-500.0,0.00016847,2]
[350671145,1738051028697,-500.0,0.00016847,2]
[350671146,1738051028739,-160.84944382,0.00016847,2]
[350671147,1738051028782,-500.0,0.00016847,2]
[350671148,1738051028823,-500.0,0.00016847,2]
[350671149,1738051028864,-500.0,0.00016847,2]
[350671150,1738051028903,-500.0,0.00016847,2]
[350671151,1738051028945,-756.72,0.00016847,2]
[350671152,1738051028986,-500.0,0.00016847,2]
[350671153,1738051029024,-517.54274188,0.00016847,2]
[350671154,1738051029063,-500.0,0.00016847,2]
[350671155,1738051029100,-500.0,0.00016847,2]
[350671156,1738051029138,-500.0,0.00016847,2]
[350671157,1738051029177,-500.0,0.00016847,2]
[350671158,1738051029216,-500.0,0.00016847,2]
[350671159,1738051029257,-500.0,0.00016847,2]
[350671160,1738051029297,-500.0,0.00016847,2]
[350671161,1738051029336,-500.0,0.00016847,2]
[350671162,1738051029376,-500.0,0.00016847,2]
[350671163,1738051029415,-500.0,0.00016847,2]
[350671164,1738051029459,-884.03,0.00016847,2]
[350671165,1738051029499,-500.0,0.00016847,2]
[350671166,1738051029540,-500.0,0.00016847,2]
[350671167,1738051029582,-500.0,0.00016847,2]
[350671168,1738051029625,-613.52,0.00016847,2]
[350671169,1738051029667,-500.0,0.00016847,2]
[350671170,1738051029708,-500.0,0.00016847,2]
[350671171,1738051029748,-500.0,0.00016847,2]
[350671172,1738051029792,-500.0,0.00016847,2]
[350671173,1738051029831,-500.0,0.00016847,2]
[350671174,1738051029876,-500.0,0.00016847,2]
[350671175,1738051029915,-500.0,0.00016847,2]
[350671176,1738051029955,-500.0,0.00016847,2]
[350671177,1738051029997,-500.0,0.00016847,2]
[350671178,1738051030035,-500.0,0.00016847,2]
[350671179,1738051030073,-500.0,0.00016847,2]
[350671180,1738051030110,-500.0,0.00016847,2]
[350671181,1738051030147,-500.0,0.00016847,2]
[350671182,1738051030185,-500.0,0.00016847,2]
[350671183,1738051030222,-500.0,0.00016847,2]
[350671184,1738051030261,-500.0,0.00016847,2]
[350671185,1738051030300,-500.0,0.00016847,2]
[350671186,1738051030341,-500.0,0.00016847,2]
[350671187,1738051030379,-505.58381825,0.00016847,2]
[350671188,1738051030419,-500.0,0.00016847,2]
[350671189,1738051030461,-1751.49387101,0.00016847,2]
[350671191,1738051037617,244.886239,0.00013973,2]
[350671196,1738051625135,-199.823409,0.0001584,2]
[350671197,1738051625156,-182.8611028,0.00016,2]
[350671198,1738051640087,-199.823409,0.0001584,2]
[350671199,1738051640107,-340.4990318,0.00015889,2]
[350671200,1738051642099,-877.61850755,0.00015889,2]
[350671231,1738051832274,-300.0,0.00015888,2]
[350671232,1738051832284,-2916.52141648,0.00015889,2]
[350671233,1738051832434,-6786.95592257,0.00015889,2]
[350671234,1738051832443,-211.67933087,0.00016678,2]
[350671235,1738051832453,-272.10725511,0.00016746,2]
[350671236,1738051832463,-500.0,0.00016845,2]
[350671237,1738051832472,-500.0,0.00016845,2]
[350671238,1738051832482,-267.3,0.00016845,2]
[350671239,1738051832491,-500.0,0.00016845,2]
[350671240,1738051832500,-500.0,0.00016845,2]
[350671241,1738051832509,-233.2380048,0.00016845,2]
[350671318,1738051838278,-2797.527726,0.00015573,2]
[350671320,1738051838288,-266.7619952,0.00016845,2]
[350671322,1738051838297,-500.0,0.00016845,2]
[350671324,1738051838308,-500.0,0.00016845,2]
[350671325,1738051838317,-524.9394023,0.00016845,2]
[350671327,1738051838327,-500.0,0.00016845,2]
[350671329,1738051838336,-500.0,0.00016845,2]
[350671331,1738051838345,-500.0,0.00016845,2]
[350671333,1738051838354,-500.0,0.00016845,2]
[350671335,1738051838363,-500.0,0.00016845,2]
[350671337,1738051838372,-500.0,0.00016845,2]
[350671338,1738051838381,-564.67506955,0.00016845,2]
[350671340,1738051838391,-500.0,0.00016845,2]
[350671342,1738051838400,-500.0,0.00016845,2]
[350671343,1738051838409,-500.0,0.00016845,2]
[350671344,1738051838419,-500.0,0.00016845,2]
[350671346,1738051838428,-500.0,0.00016845,2]
[350671347,1738051838437,-500.0,0.00016845,2]
[350671349,1738051838446,-500.0,0.00016845,2]
[350671350,1738051838455,-500.0,0.00016845,2]
[350671351,1738051838465,-302.00668416,0.00016845,2]
[350671352,1738051838474,-500.0,0.00016845,2]
[350671353,1738051838483,-500.0,0.00016845,2]
[350671354,1738051838493,-500.0,0.00016845,2]
[350671355,1738051838502,-423.50854675,0.00016845,2]
[350671356,1738051838591,-76.49145325,0.00016845,2]
[350671357,1738051838601,-504.38163522,0.00016845,2]
[350671358,1738051838610,-216.58377566,0.00016845,2]
[350671446,1738051841147,-1.20210509,0.00016845,2]
[350671447,1738051841170,-282.21411925,0.00016845,2]
[350671448,1738051841181,-500.0,0.00016845,2]
[350671449,1738051841190,-280.33280575,0.00016845,2]
[350671450,1738051841201,-219.66719425,0.00016845,2]
[350671451,1738051841210,-500.0,0.00016845,2]
[350671452,1738051841220,-126.11617073,0.00016845,2]
[350671453,1738051841231,-373.88382927,0.00016845,2]
[350671454,1738051841240,-500.0,0.00016845,2]
[350671455,1738051841249,-500.0,0.00016845,2]
[350671456,1738051841259,-500.0,0.00016845,2]
[350671457,1738051841268,-265.28561398,0.00016845,2]
[350671479,1738051843156,-234.71438602,0.00016845,2]
[350671480,1738051843165,-500.0,0.00016845,2]
[350671481,1738051843174,-500.0,0.00016845,2]
[350671482,1738051843183,-442.57036982,0.00016845,2]
[350672213,1738051952508,245.910335,0.00013973,2]
[350672221,1738052835137,-1723.27452496,0.00015833,2]
[350672222,1738052852092,-462.9095841,0.00015833,2]
[350672223,1738052854120,-660.84786272,0.00015833,2]
[350672224,1738052916371,238.18046257,0.0001,7]
[350672233,1738052944094,246.219807,0.00013973,2]
[350672238,1738053001886,-209.6498902,0.00015733,2]
[350672239,1738053001914,-229.234885,0.00015793,2]
[350672240,1738053001938,-419.1152248,0.00015793,2]
[350672259,1738053032624,-45.0140304,0.00015793,2]
[350672260,1738053032633,-1381.49901246,0.00015833,2]
[350672267,1738053038335,-339.51645767,0.00015833,2]
[350672268,1738053038347,-293.33861973,0.00015833,2]
[350672269,1738053038391,-414.061,0.00015833,2]
[350672270,1738053038403,-1150.60243313,0.00015833,2]
[350672271,1738053038425,-1599.13135451,0.00015833,2]
[350672272,1738053038448,-589.20242492,0.00015833,2]
[350672273,1738053038458,-300.0,0.00016447,2]
[350672274,1738053038468,-9551.98298909,0.00016448,2]
[350672275,1738053038478,-217.68580412,0.00016741,2]
[350672276,1738053038488,-195.07055354,0.00016741,2]
[350672277,1738053038498,-500.0,0.00016799,2]
[350672278,1738053038507,-500.0,0.00016799,2]
[350672279,1738053038517,-500.0,0.00016799,2]
[350672280,1738053038527,-500.0,0.00016799,2]
[350672281,1738053038537,-3.23453302,0.00016799,2]
[350672289,1738053040518,-512.37431689,0.00016799,2]
[350672290,1738053040599,-33.92209763,0.00016799,2]
[350672348,1738053043583,-175.65905246,0.00016799,2]
[350672349,1738053043593,-500.0,0.00016799,2]
[350672350,1738053043603,-500.0,0.00016799,2]
[350672352,1738053043613,-500.0,0.00016799,2]
[350672354,1738053043622,-737.21,0.00016799,2]
[350672356,1738053043632,-5976.48769265,0.000168,2]
[350672358,1738053043644,-2873.9143293,0.000168,2]
[350672475,1738053100960,230.811268,0.00013699,2]
[350672477,1738054015389,245.883555,0.00013973,2]
[350672478,1738054027121,-162.328899,0.00015299,2]
[350672479,1738054027142,-2417.81046562,0.00015299,2]
[350672480,1738054037093,-1049.93727074,0.00015299,2]
[350672481,1738054048115,-2111.508,0.00015299,2]
[350672485,1738054150172,-6780.09052565,0.00015299,2]
[350672486,1738054150194,-84.46647435,0.00015454,2]
[350673145,1738054238723,-144.76841125,0.00015454,2]
[350673147,1738054238732,-1115.3642019,0.00015758,2]
[350673149,1738054238742,-18908.37558455,0.00015792,2]
[350673620,1738054243541,-4257.43599825,0.00015792,2]
[350673622,1738054243551,-1810.7604671,0.00015967,2]
[350673625,1738054243560,-1135.26431571,0.00016,2]
[350673627,1738054243570,-192.06575874,0.000162,2]
[350673629,1738054243580,-174.14864328,0.00016338,2]
[350673631,1738054243589,-195.07055352,0.00016338,2]
[350673633,1738054243599,-225.14619971,0.0001642,2]
[350673635,1738054243608,-335.85524484,0.00016437,2]
[350674915,1738054584303,185.421251,0.00013699,2]
[350674916,1738054713925,1803.85941858,0.0001,2]
[350674928,1738054963805,244.965379,0.00013973,2]
[350674930,1738055113398,199.823409,0.0001511,2]
[350674931,1738055241145,-199.823409,0.00015381,2]
[350674932,1738055241166,-11.327391,0.00015535,2]
[350674933,1738055243138,-288.672609,0.00015535,2]
[350674934,1738055243158,-606.17777487,0.00015536,2]
[350674935,1738055244093,-540.3224408,0.00015536,2]
[350674936,1738055247090,-728.51369709,0.00015536,2]
[350674937,1738055354141,-300.0,0.00015221,2]
[350674938,1738055354162,-24317.46927239,0.00015222,2]
[350674939,1738055367120,-490.0,0.00015222,2]
[350674987,1738055443738,-1000.82398175,0.00015222,2]
[350674989,1738055443748,-92.53072761,0.00015222,2]
[350674991,1738055443757,-210.835094,0.00015758,2]
[350674993,1738055443766,-280.591,0.00016,2]
[350674995,1738055443775,-153.0,0.00016124,2]
[350674997,1738055443785,-153.0,0.00016124,2]
[350674999,1738055443794,-153.0,0.00016126,2]
[350675001,1738055443803,-153.0,0.00016175,2]
[350675003,1738055443812,-10781.9833892,0.00016223,2]
[350675005,1738055443821,-195.07055352,0.00016336,2]
[350675007,1738055443830,-1237.76280192,0.00016338,2]
[350675009,1738055443839,-151.0,0.00016436,2]
[350675011,1738055443848,-152.368679,0.00016436,2]
[350675013,1738055443858,-208.03698892,0.00016437,2]
[350675015,1738055443867,-500.0,0.00016437,2]
[350675017,1738055443876,-500.0,0.00016437,2]
[350675019,1738055443885,-546.22108659,0.00016437,2]
[350675021,1738055443895,-617.14794437,0.00016437,2]
[350675023,1738055443904,-151.0,0.00016437,2]
[350675025,1738055443914,-151.0,0.00016437,2]
[350675027,1738055443923,-151.0,0.00016437,2]
[350675029,1738055443932,-500.0,0.00016437,2]
[350675031,1738055443942,-500.0,0.00016437,2]
[350675033,1738055443951,-500.0,0.00016437,2]
[350675035,1738055443960,-500.0,0.00016437,2]
[350675037,1738055443969,-500.0,0.00016437,2]
[350675040,1738055443980,-500.0,0.00016437,2]
[350675042,1738055443990,-500.0,0.00016437,2]
[350675044,1738055444000,-500.0,0.00016437,2]
[350675046,1738055444010,-500.0,0.00016437,2]
[350675048,1738055444019,-500.0,0.00016437,2]
[350675050,1738055444028,-463.55965631,0.00016437,2]
[350675052,1738055444038,-500.0,0.00016437,2]
[350675054,1738055444047,-500.0,0.00016437,2]
[350675056,1738055444056,-500.0,0.00016437,2]
[350675058,1738055444070,-500.0,0.00016437,2]
[350675060,1738055444080,-500.0,0.00016437,2]
[350675062,1738055444089,-500.0,0.00016437,2]
[350675064,1738055444098,-500.0,0.00016437,2]
[350675066,1738055444109,-500.0,0.00016437,2]
[350675068,1738055444119,-500.0,0.00016437,2]
[350675070,1738055444128,-500.0,0.00016437,2]
[350675072,1738055444138,-500.0,0.00016437,2]
[350675074,1738055444148,-500.0,0.00016437,2]
[350675076,1738055444157,-500.0,0.00016437,2]
[350675078,1738055444167,-500.0,0.00016437,2]
[350675080,1738055444176,-226.40991481,0.00016437,2]
[350675082,1738055444186,-500.0,0.00016437,2]
[350675084,1738055444195,-500.0,0.00016437,2]
[350675086,1738055444205,-500.0,0.00016437,2]
[350675088,1738055444214,-651.35219439,0.00016437,2]
[350675090,1738055444223,-500.0,0.00016437,2]
[350675092,1738055444232,-500.0,0.00016437,2]
[350675094,1738055444241,-500.0,0.00016437,2]
[350675096,1738055444251,-500.0,0.00016437,2]
[350675098,1738055444260,-500.0,0.00016437,2]
[350675100,1738055444270,-192.4363514,0.00016437,2]
[350675102,1738055444280,-500.0,0.00016437,2]
[350675104,1738055444290,-500.0,0.00016437,2]
[350675106,1738055444299,-500.0,0.00016437,2]
[350675108,1738055444309,-500.0,0.00016437,2]
[350675110,1738055444319,-500.0,0.00016437,2]
[350675112,1738055444328,-500.0,0.00016437,2]
[350675114,1738055444338,-500.0,0.00016437,2]
[350675116,1738055444348,-500.0,0.00016437,2]
[350675118,1738055444358,-500.0,0.00016437,2]
[350675120,1738055444367,-500.0,0.00016437,2]
[350675122,1738055444376,-500.0,0.00016437,2]
[350675124,1738055444386,-500.0,0.00016437,2]
[350675126,1738055444395,-500.0,0.00016437,2]
[350675128,1738055444404,-500.0,0.00016437,2]
[350675130,1738055444413,-500.0,0.00016437,2]
[350675132,1738055444422,-500.0,0.00016437,2]
[350675134,1738055444431,-486.77215178,0.00016437,2]
[350675136,1738055444440,-500.0,0.00016437,2]
[350675138,1738055444449,-500.0,0.00016437,2]
[350675140,1738055444458,-500.0,0.00016437,2]
[350675142,1738055444468,-500.0,0.00016437,2]
[350675144,1738055444477,-500.0,0.00016437,2]
[350675146,1738055444487,-502.74851468,0.00016438,2]
[350675148,1738055444496,-151.0,0.00016438,2]
[350675150,1738055444505,-151.0,0.00016438,2]
[350675153,1738055444515,-500.0,0.00016438,2]
[350675154,1738055444524,-500.0,0.00016438,2]
[350675156,1738055444533,-503.18120171,0.00016438,2]
[350675159,1738055444543,-500.0,0.00016438,2]
[350675161,1738055444553,-500.927015,0.00016438,2]
[350675163,1738055444563,-500.76711555,0.00016438,2]
[350675165,1738055444572,-151.0,0.00016438,2]
[350675167,1738055444582,-151.0,0.00016438,2]
[350675169,1738055444591,-151.0,0.00016438,2]
[350675171,1738055444601,-151.0,0.00016438,2]
[350675173,1738055444610,-151.0,0.00016438,2]
[350675175,1738055444620,-151.0,0.00016438,2]
[350675177,1738055444629,-151.0,0.00016438,2]
[350675179,1738055444639,-151.0,0.00016438,2]
[350675181,1738055444648,-151.0,0.00016438,2]
[350675183,1738055444657,-151.0,0.00016438,2]
[350675185,1738055444666,-151.0,0.00016438,2]
[350675187,1738055444675,-157.22273,0.00016438,2]
[350675189,1738055444685,-500.0,0.00016438,2]
[350675191,1738055444694,-153.11102,0.00016438,2]
[350675193,1738055444703,-160.062304,0.00016438,2]
[350675194,1738055444713,-500.0,0.00016438,2]
[350675197,1738055444722,-151.0,0.00016438,2]
[350675199,1738055444732,-151.0,0.00016438,2]
[350675201,1738055444742,-151.0,0.00016438,2]
[350675202,1738055444751,-151.0,0.00016438,2]
[350675204,1738055444759,-151.0,0.00016438,2]
[350675206,1738055444769,-151.0,0.00016438,2]
[350675208,1738055444778,-170.350608,0.00016438,2]
[350675211,1738055444788,-151.0,0.00016438,2]
[350675212,1738055444797,-235.375554,0.00016438,2]
[350675215,1738055444807,-151.0,0.00016438,2]
[350675217,1738055444816,-151.0,0.00016438,2]
[350675219,1738055444826,-164.137929,0.00016438,2]
[350675221,1738055444835,-500.0,0.00016438,2]
[350675223,1738055444845,-500.0,0.00016438,2]
[350675225,1738055444854,-500.0,0.00016438,2]
[350675227,1738055444863,-500.0,0.00016438,2]
[350675229,1738055444873,-258.25353,0.00016438,2]
[350675230,1738055444882,-500.0,0.00016438,2]
[350675231,1738055444891,-500.0,0.00016438,2]
[350675232,1738055444901,-500.0,0.00016438,2]
[350675233,1738055444910,-500.0,0.00016438,2]
[350675234,1738055444919,-500.0,0.00016438,2]
[350675235,1738055444929,-297.98219356,0.00016438,2]
[350675236,1738055444938,-500.0,0.00016438,2]
[350675237,1738055444948,-500.0,0.00016438,2]
[350675238,1738055444957,-500.0,0.00016438,2]
[350675239,1738055444967,-331.1736146,0.00016438,2]
[350675240,1738055444976,-500.0,0.00016438,2]
[350675241,1738055444988,-500.0,0.00016438,2]
[350675242,1738055444997,-451.17228769,0.00016438,2]
[350675243,1738055445007,-500.0,0.00016438,2]
[350675244,1738055445017,-500.0,0.00016438,2]
[350675245,1738055445027,-151.0,0.00016438,2]
[350675246,1738055445036,-151.0,0.00016438,2]
[350675248,1738055445045,-224.985674,0.00016438,2]
[350675262,1738055445162,-533.31661973,0.00016438,2]
[350675264,1738055445172,-500.0,0.00016438,2]
[350675266,1738055445181,-500.0,0.00016438,2]
[350675268,1738055445190,-500.0,0.00016438,2]
[350675270,1738055445199,-500.0,0.00016438,2]
[350675272,1738055445208,-500.57512818,0.00016438,2]
[350675274,1738055445217,-152.554602,0.00016438,2]
[350675276,1738055445227,-500.0,0.00016438,2]
[350675278,1738055445238,-500.0,0.00016438,2]
[350675280,1738055445247,-500.0,0.00016438,2]
[350675282,1738055445256,-500.0,0.00016438,2]
[350675284,1738055445266,-500.0,0.00016438,2]
[350675286,1738055445275,-500.0,0.00016438,2]
[350675288,1738055445284,-500.0,0.00016438,2]
[350675290,1738055445294,-158.712357,0.00016438,2]
[350675292,1738055445304,-336.66230125,0.00016438,2]
[350675294,1738055445314,-500.0,0.00016438,2]
[350675296,1738055445324,-500.0,0.00016438,2]
[350675298,1738055445334,-327.37889818,0.00016438,2]
[350675300,1738055445343,-500.0,0.00016438,2]
[350675302,1738055445353,-500.0,0.00016438,2]
[350675304,1738055445362,-500.0,0.00016438,2]
[350675307,1738055445373,-500.0,0.00016438,2]
[350675309,1738055445382,-500.0,0.00016438,2]
[350675311,1738055445392,-364.67000093,0.00016438,2]
[350675313,1738055445401,-500.0,0.00016438,2]
[350675315,1738055445410,-500.0,0.00016438,2]
[350675317,1738055445419,-500.0,0.00016438,2]
[350675319,1738055445428,-500.0,0.00016438,2]
[350675321,1738055445437,-500.0,0.00016438,2]
[350675323,1738055445447,-517.48574581,0.00016438,2]
[350675325,1738055445457,-500.0,0.00016438,2]
[350675327,1738055445466,-500.0,0.00016438,2]
[350675329,1738055445476,-501.02048166,0.00016438,2]
[350675331,1738055445485,-335.50084153,0.00016438,2]
[350675333,1738055445495,-500.0,0.00016438,2]
[350675335,1738055445504,-500.0,0.00016438,2]
[350675337,1738055445514,-500.0,0.00016438,2]
[350675339,1738055445523,-451.61146192,0.00016438,2]
[350675341,1738055445532,-500.0,0.00016438,2]
[350675343,1738055445542,-501.47384359,0.00016438,2]
[350675345,1738055445552,-500.0,0.00016438,2]
[350675347,1738055445561,-512.36,0.00016438,2]
[350675349,1738055445570,-151.0,0.00016438,2]
[350675351,1738055445579,-151.0,0.00016438,2]
[350675353,1738055445589,-500.0,0.00016438,2]
[350675355,1738055445599,-151.0,0.00016438,2]
[350675357,1738055445609,-500.0,0.00016438,2]
[350675359,1738055445618,-151.0,0.00016438,2]
[350675361,1738055445629,-151.0,0.00016438,2]
[350675363,1738055445640,-500.0,0.00016438,2]
[350675365,1738055445649,-151.0,0.00016438,2]
[350675367,1738055445658,-500.0,0.00016438,2]
[350675369,1738055445669,-500.0,0.00016438,2]